[Event "GrandPrix_29.05"]
[Site "Chess.com"]
[Date "2020.05.29"]
[Round "5"]
[White "Firegrizzly"]
[Black "TheEternalPatzer"]
[Result "1-0"]
[WhiteElo "2363"]
[BlackElo "2120"]
[TimeControl "600+2"]
[EndTime "11:34:50 PDT"]
[Termination "Firegrizzly won by resignation"]

1. e4 {[%clk 0:10:01.9]} 1... d6 {[%clk 0:09:57.8]} 2. d4 {[%clk 0:10:01.7]}
2... Nf6 {[%clk 0:09:58.2]} 3. Nc3 {[%clk 0:09:59.2]} 3... g6 {[%clk 0:09:58.8]}
4. Nf3 {[%clk 0:09:59.5]} 4... Bg7 {[%clk 0:09:59]} 5. Be2 {[%clk 0:10:01]} 5...
O-O {[%clk 0:09:59.7]} 6. O-O {[%clk 0:10:02]} 6... Nc6 {[%clk 0:10:00.1]} 7. d5
{[%clk 0:10:01.9]} 7... Nb8 {[%clk 0:10:00.4]} 8. a4 {[%clk 0:10:01]} 8... Bg4
{[%clk 0:09:53.3]} 9. a5 {[%clk 0:10:01.7]} 9... e6 {[%clk 0:09:03.6]} 10. dxe6
{[%clk 0:09:56.1]} 10... Bxe6 {[%clk 0:08:47.6]} 11. Nd4 {[%clk 0:09:52.1]}
11... a6 {[%clk 0:08:19.8]} 12. f4 {[%clk 0:08:31.7]} 12... Bd7 {[%clk
0:08:01.1]} 13. Bf3 {[%clk 0:08:29.3]} 13... Nc6 {[%clk 0:06:58.9]} 14. Nde2
{[%clk 0:08:28.2]} 14... Bg4 {[%clk 0:06:48.1]} 15. Ra4 {[%clk 0:07:11.6]} 15...
Re8 {[%clk 0:06:33.2]} 16. Ng3 {[%clk 0:07:02.4]} 16... Bxf3 {[%clk 0:05:42.3]}
17. Qxf3 {[%clk 0:07:04.3]} 17... Nd7 {[%clk 0:05:40.9]} 18. Ra1 {[%clk
0:05:54.6]} 18... Nc5 {[%clk 0:04:43.8]} 19. Be3 {[%clk 0:05:27]} 19... Qh4
{[%clk 0:04:19.9]} 20. e5 {[%clk 0:05:13.5]} 20... Rad8 {[%clk 0:04:02.3]} 21.
Bxc5 {[%clk 0:04:54.1]} 21... dxc5 {[%clk 0:04:00.9]} 22. Nce4 {[%clk
0:04:40.8]} 22... Rd4 {[%clk 0:02:46.3]} 23. c3 {[%clk 0:04:07.8]} 23... Rdd8
{[%clk 0:02:28.6]} 24. Nxc5 {[%clk 0:04:06.2]} 24... Ne7 {[%clk 0:02:25]} 25.
Nxb7 {[%clk 0:03:59]} 25... Rd2 {[%clk 0:02:23.5]} 26. Rf2 {[%clk 0:03:50]}
26... Rxf2 {[%clk 0:02:22.4]} 27. Qxf2 {[%clk 0:03:50.9]} 27... Nd5 {[%clk
0:02:23.2]} 28. Rf1 {[%clk 0:03:40.1]} 28... Bh6 {[%clk 0:02:21]} 29. Qd4 {[%clk
0:01:57.7]} 29... Nxf4 {[%clk 0:02:00.3]} 30. b4 {[%clk 0:01:43.4]} 30... Qxg3
{[%clk 0:01:41.7]} 31. hxg3 {[%clk 0:01:43.1]} 31... Ne2+ {[%clk 0:01:43]} 32.
Kf2 {[%clk 0:01:31.5]} 32... Nxd4 {[%clk 0:01:44.9]} 33. cxd4 {[%clk 0:01:31.7]}
33... Rb8 {[%clk 0:01:45.5]} 34. Nc5 {[%clk 0:01:30.7]} 34... Rxb4 {[%clk
0:01:45.9]} 35. Rd1 {[%clk 0:01:26.9]} 35... Rb5 {[%clk 0:01:40.2]} 36. Nxa6
{[%clk 0:01:27.8]} 36... Rxa5 {[%clk 0:01:37.6]} 37. Nxc7 {[%clk 0:01:28.5]}
37... Ra2+ {[%clk 0:01:35.2]} 38. Kf3 {[%clk 0:01:27.5]} 38... Ra3+ {[%clk
0:01:35.1]} 39. Kg4 {[%clk 0:01:26.2]} 39... Be3 {[%clk 0:01:22.7]} 40. Nd5
{[%clk 0:01:22.5]} 40... Bf2 {[%clk 0:01:19.9]} 41. Nf6+ {[%clk 0:01:21.1]}
41... Kg7 {[%clk 0:01:20.2]} 42. Ne4 {[%clk 0:01:13.3]} 42... h5+ {[%clk
0:01:09.3]} 43. Kh3 {[%clk 0:01:13.2]} 43... Be3 {[%clk 0:01:08.4]} 44. d5
{[%clk 0:01:10.5]} 44... Bf4 {[%clk 0:00:53.5]} 45. d6 {[%clk 0:00:43.8]} 45...
Bxe5 {[%clk 0:00:52.9]} 46. d7 {[%clk 0:00:44.7]} 46... Bc7 {[%clk 0:00:54.8]}
47. Rc1 {[%clk 0:00:44.2]} 47... Ba5 {[%clk 0:00:49.1]} 48. Rc5 {[%clk
0:00:42.9]} 48... Bb6 {[%clk 0:00:48.6]} 49. Rc6 {[%clk 0:00:39.2]} 49... Bd8
{[%clk 0:00:46.5]} 50. Rc8 {[%clk 0:00:39.9]} 50... Bb6 {[%clk 0:00:46.3]} 51.
Rb8 {[%clk 0:00:32.6]} 51... Bc7 {[%clk 0:00:46]} 52. d8=Q {[%clk 0:00:33.4]}
52... Bxd8 {[%clk 0:00:46.1]} 53. Rxd8 {[%clk 0:00:35.3]} 53... Re3 {[%clk
0:00:45.3]} 54. Ng5 {[%clk 0:00:35.2]} 54... Re7 {[%clk 0:00:43.6]} 55. Rd5
{[%clk 0:00:34.8]} 55... Kf6 {[%clk 0:00:42.5]} 56. Nf3 {[%clk 0:00:35]} 56...
Re4 {[%clk 0:00:39.3]} 57. Rd6+ {[%clk 0:00:35.6]} 57... Kg7 {[%clk 0:00:37.8]}
58. Rd7 {[%clk 0:00:35.3]} 58... Kf6 {[%clk 0:00:36.8]} 59. Rb7 {[%clk
0:00:35.9]} 59... Rc4 {[%clk 0:00:20.8]} 60. Rxf7+ {[%clk 0:00:33.4]} 60... Ke6
{[%clk 0:00:17.4]} 61. Ng5+ {[%clk 0:00:33.6]} 61... Ke5 {[%clk 0:00:17.3]} 62.
Rf8 {[%clk 0:00:33]} 62... Rg4 {[%clk 0:00:16]} 63. Nf3+ {[%clk 0:00:33.6]}
63... Ke6 {[%clk 0:00:16.7]} 64. Nh4 {[%clk 0:00:33.9]} 64... Ke7 {[%clk
0:00:16.4]} 65. Rf4 {[%clk 0:00:33.9]} 65... Rg5 {[%clk 0:00:14.5]} 66. g4
{[%clk 0:00:34.2]} 66... hxg4+ {[%clk 0:00:13.7]} 67. Rxg4 {[%clk 0:00:35.3]}
67... Rh5 {[%clk 0:00:13.2]} 68. Rxg6 {[%clk 0:00:35.1]} 68... Kf7 {[%clk
0:00:15.1]} 69. Rg3 {[%clk 0:00:35.1]} 69... Rh8 {[%clk 0:00:14.3]} 70. Rf3+
{[%clk 0:00:35.1]} 70... Kg7 {[%clk 0:00:14.5]} 71. g4 {[%clk 0:00:36.2]} 71...
Rh7 {[%clk 0:00:14.1]} 72. Rc3 {[%clk 0:00:36.5]} 72... Rh8 {[%clk 0:00:14.1]}
73. Kg3 {[%clk 0:00:36.3]} 73... Ra8 {[%clk 0:00:13.1]} 74. Rc7+ {[%clk
0:00:36.2]} 74... Kf6 {[%clk 0:00:13.7]} 75. Rc6+ {[%clk 0:00:37]} 75... Kg7
{[%clk 0:00:12.3]} 76. Nf5+ {[%clk 0:00:37.7]} 76... Kf7 {[%clk 0:00:11]} 77.
Kh4 {[%clk 0:00:38.5]} 77... Rh8+ {[%clk 0:00:10.1]} 78. Kg5 {[%clk 0:00:39.4]}
78... Rg8+ {[%clk 0:00:12]} 79. Kh5 {[%clk 0:00:40.4]} 79... Rh8+ {[%clk
0:00:12.4]} 80. Nh6+ {[%clk 0:00:41]} 80... Kg7 {[%clk 0:00:11.9]} 81. Rc7+
{[%clk 0:00:40.2]} 81... Kf6 {[%clk 0:00:10.1]} 82. g5+ {[%clk 0:00:40.8]} 82...
Ke6 {[%clk 0:00:10.1]} 83. g6 {[%clk 0:00:41]} 1-0

[Event "GrandPrix_29.05"]
[Site "Chess.com"]
[Date "2020.05.29"]
[Round "5"]
[White "kotmizer"]
[Black "MikaelyanArman1996"]
[Result "1/2-1/2"]
[WhiteElo "2152"]
[BlackElo "2225"]
[TimeControl "600+2"]
[EndTime "11:34:50 PDT"]
[Termination "Game drawn - insufficient material"]

1. c4 {[%clk 0:10:01.9]} 1... Nf6 {[%clk 0:09:59.9]} 2. Nc3 {[%clk 0:10:02.2]}
2... g6 {[%clk 0:10:00.9]} 3. g3 {[%clk 0:10:02.5]} 3... Bg7 {[%clk 0:10:01.7]}
4. Bg2 {[%clk 0:10:03.7]} 4... O-O {[%clk 0:10:03.2]} 5. e4 {[%clk 0:10:04.6]}
5... d6 {[%clk 0:10:03.2]} 6. Nge2 {[%clk 0:10:04.1]} 6... c5 {[%clk 0:10:03.8]}
7. d4 {[%clk 0:10:03.1]} 7... cxd4 {[%clk 0:10:00.8]} 8. Nxd4 {[%clk 0:10:03.9]}
8... Nc6 {[%clk 0:10:00.4]} 9. Nc2 {[%clk 0:10:04.5]} 9... Bg4 {[%clk
0:08:51.9]} 10. f3 {[%clk 0:10:04.6]} 10... Be6 {[%clk 0:08:52.7]} 11. b3 {[%clk
0:09:43.2]} 11... Nd7 {[%clk 0:08:33]} 12. Bd2 {[%clk 0:09:42.1]} 12... f5
{[%clk 0:08:09.3]} 13. O-O {[%clk 0:09:05.3]} 13... fxe4 {[%clk 0:08:09]} 14.
Nxe4 {[%clk 0:09:02]} 14... Bxa1 {[%clk 0:08:00.3]} 15. Qxa1 {[%clk 0:09:02.1]}
15... Bf5 {[%clk 0:07:00]} 16. Bh6 {[%clk 0:08:44.7]} 16... Rf7 {[%clk
0:06:58.4]} 17. Ng5 {[%clk 0:08:29]} 17... Qb6+ {[%clk 0:06:34.4]} 18. Kh1
{[%clk 0:08:28.5]} 18... Rf6 {[%clk 0:06:33.7]} 19. Qc3 {[%clk 0:08:03.9]} 19...
Qa5 {[%clk 0:05:39.9]} 20. b4 {[%clk 0:07:50.4]} 20... Qe5 {[%clk 0:05:36.6]}
21. Qd2 {[%clk 0:07:28.8]} 21... Bxc2 {[%clk 0:05:23.4]} 22. Qxc2 {[%clk
0:07:23.8]} 22... Nxb4 {[%clk 0:04:28.4]} 23. Qb1 {[%clk 0:06:55.7]} 23... Qa5
{[%clk 0:03:57]} 24. Qe1 {[%clk 0:06:36]} 24... Nc6 {[%clk 0:03:47.9]} 25. Qa1
{[%clk 0:06:30.3]} 25... Qe5 {[%clk 0:02:33.6]} 26. Qb1 {[%clk 0:06:29.5]} 26...
Nc5 {[%clk 0:02:08.4]} 27. f4 {[%clk 0:06:29.9]} 27... Qf5 {[%clk 0:02:04.7]}
28. Qe1 {[%clk 0:06:28.4]} 28... Re8 {[%clk 0:01:54.9]} 29. Qa1 {[%clk
0:05:36.5]} 29... Nd8 {[%clk 0:01:36.4]} 30. Bd5+ {[%clk 0:05:29.8]} 30... Kh8
{[%clk 0:01:17.5]} 31. Nf3 {[%clk 0:05:08.7]} 31... e5 {[%clk 0:00:58.3]} 32.
fxe5 {[%clk 0:05:07.1]} 32... dxe5 {[%clk 0:00:51.5]} 33. Nd2 {[%clk 0:05:08]}
33... Qh3 {[%clk 0:00:40.2]} 34. Rxf6 {[%clk 0:05:03.3]} 34... Qxh6 {[%clk
0:00:40.4]} 35. Qf1 {[%clk 0:04:36.3]} 35... Qg7 {[%clk 0:00:32.2]} 36. Qf3
{[%clk 0:04:18.5]} 36... Nd7 {[%clk 0:00:30.7]} 37. Rd6 {[%clk 0:04:14.9]} 37...
Nb6 {[%clk 0:00:28.1]} 38. Ne4 {[%clk 0:04:09.2]} 38... Rf8 {[%clk 0:00:27.6]}
39. Qc3 {[%clk 0:03:50.6]} 39... Qe7 {[%clk 0:00:18]} 40. c5 {[%clk 0:03:24.7]}
40... Nc8 {[%clk 0:00:19]} 41. Kg2 {[%clk 0:03:11.3]} 41... Nxd6 {[%clk
0:00:17.7]} 42. cxd6 {[%clk 0:03:11.9]} 42... Qg7 {[%clk 0:00:18.5]} 43. Qc7
{[%clk 0:02:58.5]} 43... h6 {[%clk 0:00:18.8]} 44. d7 {[%clk 0:02:45.9]} 44...
Qe7 {[%clk 0:00:17.9]} 45. Bxb7 {[%clk 0:02:32.9]} 45... Nxb7 {[%clk 0:00:16]}
46. Qxb7 {[%clk 0:02:34]} 46... Qf7 {[%clk 0:00:14.2]} 47. h4 {[%clk 0:01:59.4]}
47... Rd8 {[%clk 0:00:08.6]} 48. Nc5 {[%clk 0:01:53.6]} 48... Qxa2+ {[%clk
0:00:06.7]} 49. Kh3 {[%clk 0:01:53.2]} 49... Qf7 {[%clk 0:00:06.8]} 50. Qc7
{[%clk 0:01:30.5]} 50... Qf5+ {[%clk 0:00:07]} 51. Kh2 {[%clk 0:01:27.2]} 51...
Qf2+ {[%clk 0:00:07]} 52. Kh3 {[%clk 0:01:27.9]} 52... Qf6 {[%clk 0:00:06.1]}
53. Kh2 {[%clk 0:01:28.5]} 53... h5 {[%clk 0:00:03.8]} 54. Qc8 {[%clk
0:01:01.3]} 54... Qf2+ {[%clk 0:00:03.9]} 55. Kh1 {[%clk 0:01:02.5]} 55... Qf1+
{[%clk 0:00:04.2]} 56. Kh2 {[%clk 0:01:03.7]} 56... Qf2+ {[%clk 0:00:06.1]} 57.
Kh1 {[%clk 0:01:04.9]} 57... Qf8 {[%clk 0:00:07.5]} 58. Qc6 {[%clk 0:01:01.1]}
58... Qe7 {[%clk 0:00:06.7]} 59. Qd5 {[%clk 0:01:00.1]} 59... Kh7 {[%clk
0:00:06.2]} 60. Ne6 {[%clk 0:00:59]} 60... Rxd7 {[%clk 0:00:03.8]} 61. Qxd7
{[%clk 0:00:51.5]} 61... Qxd7 {[%clk 0:00:05.7]} 62. Nf8+ {[%clk 0:00:52.8]}
62... Kg7 {[%clk 0:00:07.1]} 63. Nxd7 {[%clk 0:00:54.4]} 63... e4 {[%clk
0:00:08.6]} 64. Kg2 {[%clk 0:00:54.8]} 64... a5 {[%clk 0:00:07.7]} 65. Nb6
{[%clk 0:00:49.4]} 65... Kf6 {[%clk 0:00:07.2]} 66. Kf2 {[%clk 0:00:50.9]} 66...
Kf5 {[%clk 0:00:08.1]} 67. Na4 {[%clk 0:00:43.1]} 67... Kg4 {[%clk 0:00:08.4]}
68. Nc3 {[%clk 0:00:41.1]} 68... e3+ {[%clk 0:00:09.4]} 69. Kg2 {[%clk
0:00:39.2]} 69... a4 {[%clk 0:00:06.3]} 70. Nxa4 {[%clk 0:00:38.7]} 70... e2
{[%clk 0:00:07.6]} 71. Kf2 {[%clk 0:00:39.3]} 71... e1=Q+ {[%clk 0:00:08.6]} 72.
Kxe1 {[%clk 0:00:40.7]} 72... Kxg3 {[%clk 0:00:10.5]} 73. Nc3 {[%clk 0:00:38.3]}
73... Kxh4 {[%clk 0:00:12.4]} 74. Kf2 {[%clk 0:00:39]} 74... Kg4 {[%clk
0:00:12.3]} 75. Ne2 {[%clk 0:00:38.4]} 75... g5 {[%clk 0:00:13.2]} 76. Kg2
{[%clk 0:00:39.6]} 76... h4 {[%clk 0:00:14.2]} 77. Ng1 {[%clk 0:00:40.6]} 77...
Kf5 {[%clk 0:00:14.2]} 78. Nf3 {[%clk 0:00:41.5]} 78... Kf4 {[%clk 0:00:14.8]}
79. Nxg5 {[%clk 0:00:41.4]} 79... Kxg5 {[%clk 0:00:16]} 80. Kh3 {[%clk
0:00:42.5]} 80... Kf5 {[%clk 0:00:17.2]} 81. Kh2 {[%clk 0:00:42.9]} 81... h3
{[%clk 0:00:12.7]} 82. Kxh3 {[%clk 0:00:43.5]} 1/2-1/2

[Event "GrandPrix_29.05"]
[Site "Chess.com"]
[Date "2020.05.29"]
[Round "5"]
[White "kpio91"]
[Black "Azatic"]
[Result "1/2-1/2"]
[WhiteElo "2714"]
[BlackElo "2626"]
[TimeControl "600+2"]
[EndTime "11:34:52 PDT"]
[Termination "Game drawn by agreement"]

1. e4 {[%clk 0:10:01.9]} 1... c5 {[%clk 0:09:49.9]} 2. Nf3 {[%clk 0:09:55.9]}
2... e6 {[%clk 0:09:50.9]} 3. g3 {[%clk 0:09:55.8]} 3... Nc6 {[%clk 0:09:50.5]}
4. Bg2 {[%clk 0:09:56.3]} 4... d6 {[%clk 0:09:51.1]} 5. O-O {[%clk 0:09:51.5]}
5... Nf6 {[%clk 0:09:51.8]} 6. Re1 {[%clk 0:09:52.4]} 6... Qc7 {[%clk
0:09:43.5]} 7. d4 {[%clk 0:09:31.1]} 7... cxd4 {[%clk 0:09:45.4]} 8. Nxd4 {[%clk
0:09:32]} 8... Bd7 {[%clk 0:09:37.1]} 9. Nc3 {[%clk 0:09:06.4]} 9... a6 {[%clk
0:09:37]} 10. Nxc6 {[%clk 0:08:51.2]} 10... bxc6 {[%clk 0:09:08.5]} 11. Na4
{[%clk 0:08:51.7]} 11... Rb8 {[%clk 0:08:59.5]} 12. c4 {[%clk 0:08:52]} 12... c5
{[%clk 0:08:56]} 13. Nc3 {[%clk 0:08:50.4]} 13... Be7 {[%clk 0:08:57]} 14. b3
{[%clk 0:08:26.4]} 14... O-O {[%clk 0:08:53.6]} 15. Bb2 {[%clk 0:08:26.9]} 15...
Rfd8 {[%clk 0:08:27.1]} 16. Qc2 {[%clk 0:07:48.5]} 16... Bc6 {[%clk 0:08:18.5]}
17. Rab1 {[%clk 0:07:08.6]} 17... Nd7 {[%clk 0:07:40.4]} 18. Nd5 {[%clk
0:06:59.8]} 18... Bxd5 {[%clk 0:06:41.3]} 19. exd5 {[%clk 0:06:54.3]} 19... e5
{[%clk 0:06:41.2]} 20. Bc3 {[%clk 0:06:55.2]} 20... Re8 {[%clk 0:06:31.2]} 21.
Qd2 {[%clk 0:06:49]} 21... Bf6 {[%clk 0:06:20]} 22. Ba5 {[%clk 0:06:31.1]} 22...
Qc8 {[%clk 0:06:19.1]} 23. Bh3 {[%clk 0:06:10.4]} 23... Qb7 {[%clk 0:06:18]} 24.
f3 {[%clk 0:05:59.7]} 24... e4 {[%clk 0:05:36.5]} 25. Rxe4 {[%clk 0:05:36.9]}
25... Rxe4 {[%clk 0:05:34.5]} 26. fxe4 {[%clk 0:05:37.6]} 26... Bd4+ {[%clk
0:05:33.6]} 27. Kg2 {[%clk 0:05:36.6]} 27... Nf6 {[%clk 0:05:33.3]} 28. Re1
{[%clk 0:05:32.3]} 28... Re8 {[%clk 0:05:20.6]} 29. Qd3 {[%clk 0:04:50.4]} 29...
Qe7 {[%clk 0:05:11.6]} 30. b4 {[%clk 0:04:24.4]} 30... g6 {[%clk 0:04:42.1]} 31.
bxc5 {[%clk 0:04:12.4]} 31... Bxc5 {[%clk 0:04:44]} 32. Kf3 {[%clk 0:03:08.9]}
32... Nh5 {[%clk 0:02:57.3]} 33. Bc3 {[%clk 0:03:02.3]} 33... Nf6 {[%clk
0:01:58.8]} 34. e5 {[%clk 0:02:46]} 34... dxe5 {[%clk 0:01:55.2]} 35. Rxe5
{[%clk 0:02:46.6]} 35... Qd8 {[%clk 0:01:45.5]} 36. Rxe8+ {[%clk 0:02:37]} 36...
Nxe8 {[%clk 0:01:47.4]} 37. Qe4 {[%clk 0:02:31.4]} 37... Be7 {[%clk 0:01:27]}
38. Qd4 {[%clk 0:01:41.1]} 38... Bf6 {[%clk 0:01:25.1]} 39. Qe3 {[%clk
0:01:42.2]} 39... Nd6 {[%clk 0:01:07.8]} 40. Qd3 {[%clk 0:00:52.6]} 40... Qe7
{[%clk 0:00:37.4]} 41. Bb4 {[%clk 0:00:22.1]} 41... Qe5 {[%clk 0:00:10.7]} 42.
Bd7 {[%clk 0:00:15.8]} 42... a5 {[%clk 0:00:04.6]} 43. Bd2 {[%clk 0:00:13.1]}
43... Qa1 {[%clk 0:00:03.9]} 44. Kg2 {[%clk 0:00:06.9]} 44... Qd1 {[%clk
0:00:04.8]} 45. Qe3 {[%clk 0:00:04.9]} 45... Nxc4 {[%clk 0:00:03.5]} 46. Qe8+
{[%clk 0:00:05.9]} 46... Kg7 {[%clk 0:00:05]} 47. Bf4 {[%clk 0:00:03.6]} 47...
Qxd5+ {[%clk 0:00:06.3]} 48. Kh3 {[%clk 0:00:03.1]} 48... Nb6 {[%clk 0:00:07.2]}
49. Bc6 {[%clk 0:00:02.1]} 49... Qf5+ {[%clk 0:00:07.7]} 50. Kg2 {[%clk
0:00:03.3]} 50... Qc2+ {[%clk 0:00:06.2]} 51. Kh3 {[%clk 0:00:04.4]} 51... Qf5+
{[%clk 0:00:07.4]} 52. Kg2 {[%clk 0:00:05.6]} 52... g5 {[%clk 0:00:08.9]} 53.
Be4 {[%clk 0:00:05.6]} 53... Qc5 {[%clk 0:00:06.9]} 54. Bd2 {[%clk 0:00:03]}
54... Nc4 {[%clk 0:00:08.3]} 55. Be1 {[%clk 0:00:03.4]} 55... Ne3+ {[%clk
0:00:09.3]} 56. Kf3 {[%clk 0:00:03.9]} 56... g4+ {[%clk 0:00:10.7]} 57. Ke2
{[%clk 0:00:05.2]} 57... Nc4 {[%clk 0:00:08.9]} 58. Bd3 {[%clk 0:00:05.3]} 58...
Qd4 {[%clk 0:00:07.9]} 59. Qe4 {[%clk 0:00:05.3]} 59... Qxe4+ {[%clk 0:00:06.4]}
60. Bxe4 {[%clk 0:00:07.2]} 60... Nd6 {[%clk 0:00:07.8]} 61. Bd5 {[%clk
0:00:05.8]} 61... Bd8 {[%clk 0:00:08.1]} 62. Kd3 {[%clk 0:00:05.4]} 62... f5
{[%clk 0:00:08.1]} 63. Bc3+ {[%clk 0:00:05.8]} 63... Kg6 {[%clk 0:00:09.1]} 64.
Be5 {[%clk 0:00:06.7]} 64... Nf7 {[%clk 0:00:09.4]} 65. Bf4 {[%clk 0:00:06.7]}
65... h5 {[%clk 0:00:10.6]} 66. a4 {[%clk 0:00:07.7]} 66... h4 {[%clk
0:00:10.5]} 67. gxh4 {[%clk 0:00:04.9]} 67... Bxh4 {[%clk 0:00:11.1]} 68. Bg2
{[%clk 0:00:03.4]} 68... Bd8 {[%clk 0:00:10.8]} 69. h3 {[%clk 0:00:03.5]} 69...
gxh3 {[%clk 0:00:06.7]} 70. Bxh3 {[%clk 0:00:04.3]} 70... Kf6 {[%clk 0:00:08]}
71. Bg2 {[%clk 0:00:04.3]} 71... Ke6 {[%clk 0:00:08.9]} 72. Bc6 {[%clk
0:00:04.9]} 72... Ne5+ {[%clk 0:00:09.6]} 73. Bxe5 {[%clk 0:00:05.4]} 73... Kxe5
{[%clk 0:00:11.5]} 74. Bd7 {[%clk 0:00:05.3]} 74... Bb6 {[%clk 0:00:13.4]} 75.
Bc6 {[%clk 0:00:06]} 75... f4 {[%clk 0:00:15.3]} 76. Ke2 {[%clk 0:00:07.1]}
1/2-1/2

[Event "GrandPrix_29.05"]
[Site "Chess.com"]
[Date "2020.05.29"]
[Round "5"]
[White "Matibar"]
[Black "Meizon19"]
[Result "0-1"]
[WhiteElo "2347"]
[BlackElo "2326"]
[TimeControl "600+2"]
[EndTime "11:34:55 PDT"]
[Termination "Meizon19 won on time"]

1. e4 {[%clk 0:10:01.9]} 1... c5 {[%clk 0:10:00.7]} 2. Nf3 {[%clk 0:09:57.4]}
2... d6 {[%clk 0:10:01.2]} 3. Bb5+ {[%clk 0:09:57.9]} 3... Bd7 {[%clk
0:10:00.1]} 4. a4 {[%clk 0:09:57]} 4... Nc6 {[%clk 0:09:57.1]} 5. O-O {[%clk
0:09:53]} 5... Nf6 {[%clk 0:09:47.7]} 6. d3 {[%clk 0:09:43.7]} 6... e6 {[%clk
0:09:44.1]} 7. Re1 {[%clk 0:09:28.6]} 7... Be7 {[%clk 0:09:43]} 8. Nc3 {[%clk
0:09:29.6]} 8... O-O {[%clk 0:09:43.6]} 9. h3 {[%clk 0:09:27.5]} 9... a6 {[%clk
0:09:38.5]} 10. Bc4 {[%clk 0:09:28.6]} 10... Rb8 {[%clk 0:09:35.7]} 11. Bf4
{[%clk 0:09:26.8]} 11... e5 {[%clk 0:09:18.9]} 12. Bg5 {[%clk 0:09:21.9]} 12...
Be6 {[%clk 0:09:03]} 13. Bxf6 {[%clk 0:06:47.8]} 13... Bxf6 {[%clk 0:09:02.5]}
14. Bxe6 {[%clk 0:06:44.1]} 14... fxe6 {[%clk 0:09:03]} 15. Ne2 {[%clk 0:06:46]}
15... Rf7 {[%clk 0:08:02.5]} 16. c3 {[%clk 0:06:44.5]} 16... Qb6 {[%clk
0:07:54.8]} 17. Rb1 {[%clk 0:05:51.9]} 17... Rbf8 {[%clk 0:07:50.9]} 18. Ng3
{[%clk 0:05:49.6]} 18... Ne7 {[%clk 0:05:56.7]} 19. Nh5 {[%clk 0:04:18]} 19...
Ng6 {[%clk 0:05:56.2]} 20. Rf1 {[%clk 0:04:15.6]} 20... Be7 {[%clk 0:05:47.7]}
21. Nh2 {[%clk 0:04:15.8]} 21... Bg5 {[%clk 0:04:49.8]} 22. Qg4 {[%clk 0:03:51]}
22... h6 {[%clk 0:04:05.7]} 23. Qxe6 {[%clk 0:03:49]} 23... Kh7 {[%clk
0:04:06.8]} 24. Ng4 {[%clk 0:02:55]} 24... Qc6 {[%clk 0:02:58.8]} 25. Qb3 {[%clk
0:02:09.4]} 25... Nf4 {[%clk 0:02:49.4]} 26. Nxf4 {[%clk 0:02:07.3]} 26... Rxf4
{[%clk 0:02:50.2]} 27. Ne3 {[%clk 0:01:51]} 27... Rxf2 {[%clk 0:02:36.1]} 28.
Ng4 {[%clk 0:01:30.4]} 28... R2f4 {[%clk 0:02:31.9]} 29. Rxf4 {[%clk 0:01:29.7]}
29... Bxf4 {[%clk 0:02:26.8]} 30. Qd1 {[%clk 0:00:46.4]} 30... c4 {[%clk
0:01:40.8]} 31. Kh1 {[%clk 0:00:47.4]} 31... cxd3 {[%clk 0:01:24.2]} 32. Qxd3
{[%clk 0:00:49.3]} 32... Qxa4 {[%clk 0:01:13.5]} 33. Rf1 {[%clk 0:00:48.7]}
33... h5 {[%clk 0:01:12.7]} 34. Ne3 {[%clk 0:00:48.1]} 34... g6 {[%clk
0:00:49.6]} 35. Qxd6 {[%clk 0:00:38.7]} 35... Rf7 {[%clk 0:00:36.4]} 36. Nd5
{[%clk 0:00:33.5]} 36... Qc4 {[%clk 0:00:20.9]} 37. Rg1 {[%clk 0:00:29.8]} 37...
Kg7 {[%clk 0:00:18.6]} 38. Nxf4 {[%clk 0:00:23.4]} 38... exf4 {[%clk 0:00:19.9]}
39. Qe5+ {[%clk 0:00:24.4]} 39... Kh7 {[%clk 0:00:20.7]} 40. Qd4 {[%clk
0:00:18.1]} 40... Qe6 {[%clk 0:00:20.4]} 41. Rf1 {[%clk 0:00:15.2]} 41... f3
{[%clk 0:00:21.5]} 42. Kh2 {[%clk 0:00:15.4]} 42... fxg2 {[%clk 0:00:19.5]} 43.
Rxf7+ {[%clk 0:00:16.2]} 43... Qxf7 {[%clk 0:00:21.4]} 44. Kxg2 {[%clk
0:00:17.7]} 44... Qb3 {[%clk 0:00:20.1]} 45. Qd7+ {[%clk 0:00:17]} 45... Kh6
{[%clk 0:00:20.2]} 46. Qd2+ {[%clk 0:00:18.4]} 46... Kg7 {[%clk 0:00:20.8]} 47.
h4 {[%clk 0:00:17]} 47... Qe6 {[%clk 0:00:21.1]} 48. Qf4 {[%clk 0:00:16]} 48...
Qc4 {[%clk 0:00:19.1]} 49. Qe5+ {[%clk 0:00:15.4]} 49... Kh7 {[%clk 0:00:19.4]}
50. Qe7+ {[%clk 0:00:16.2]} 50... Kh6 {[%clk 0:00:18.9]} 51. Qg5+ {[%clk
0:00:16.2]} 51... Kg7 {[%clk 0:00:19.9]} 52. Qe3 {[%clk 0:00:16.4]} 52... Qe6
{[%clk 0:00:18.9]} 53. Qd4+ {[%clk 0:00:16.7]} 53... Kh7 {[%clk 0:00:19.6]} 54.
e5 {[%clk 0:00:17.7]} 54... Kg7 {[%clk 0:00:19.1]} 55. Kg3 {[%clk 0:00:18.1]}
55... b5 {[%clk 0:00:16.7]} 56. b4 {[%clk 0:00:11.2]} 56... Kf7 {[%clk
0:00:15.5]} 57. Qa7+ {[%clk 0:00:11.5]} 57... Kg8 {[%clk 0:00:15.3]} 58. Qb8+
{[%clk 0:00:11.9]} 58... Kg7 {[%clk 0:00:15.2]} 59. Qc7+ {[%clk 0:00:12.3]}
59... Kg8 {[%clk 0:00:16]} 60. Qd8+ {[%clk 0:00:12.2]} 60... Kf7 {[%clk
0:00:16.8]} 61. Qg5 {[%clk 0:00:12.6]} 61... Qc6 {[%clk 0:00:12.2]} 62. Qf4+
{[%clk 0:00:12.7]} 62... Kg7 {[%clk 0:00:12.6]} 63. Qd4 {[%clk 0:00:13.4]} 63...
Qe6 {[%clk 0:00:11.8]} 64. Kf4 {[%clk 0:00:07.1]} 64... Qf5+ {[%clk 0:00:12.6]}
65. Ke3 {[%clk 0:00:08.2]} 65... g5 {[%clk 0:00:13.8]} 66. hxg5 {[%clk 0:00:09]}
66... Qxg5+ {[%clk 0:00:14.4]} 67. Ke4 {[%clk 0:00:09.6]} 67... h4 {[%clk
0:00:15.6]} 68. Qd7+ {[%clk 0:00:10.4]} 68... Kg6 {[%clk 0:00:16.4]} 69. Qe8+
{[%clk 0:00:11.2]} 69... Kh6 {[%clk 0:00:16.9]} 70. Qh8+ {[%clk 0:00:12.2]}
70... Kg6 {[%clk 0:00:17.9]} 71. Qg8+ {[%clk 0:00:12]} 71... Kh5 {[%clk
0:00:18.2]} 72. Qh8+ {[%clk 0:00:04.8]} 72... Kg4 {[%clk 0:00:18.1]} 73. Qf8
{[%clk 0:00:03.3]} 73... Qg6+ {[%clk 0:00:14]} 74. Kd4 {[%clk 0:00:03.7]} 74...
h3 {[%clk 0:00:13.9]} 75. Qf2 {[%clk 0:00:04.1]} 75... Qb6+ {[%clk 0:00:13.2]}
0-1